bitfinex/quotes_SOLUSD_20250228
["timestamp","ask_amount","ask_price","bid_price","bid_amount"]
[1740759743448,19.33644886,145.6,145.59,0.0001]
[1740759745132,23.47861043,145.6,145.59,0.0001]
[1740759745351,0.14216157,145.53,145.48,0.063]
[1740759745650,18.64964886,145.51,145.48,0.063]
[1740759746044,18.64964886,145.51,145.48,312.063]
[1740759746633,0.14216157,145.5,145.48,0.063]
[1740759746946,80.84216157,145.49,145.48,0.0001]
[1740759747345,99.49181043,145.49,145.48,0.0001]
[1740759747552,100.17911043,145.49,145.48,0.0001]
[1740759747738,80.7,145.49,145.48,0.0001]
[1740759748339,100.17911043,145.49,145.48,0.0001]
[1740759748956,21.47911043,145.49,145.48,0.0001]
[1740759749253,23.47911043,145.49,145.48,0.0001]
[1740759750338,19.47911043,145.49,145.48,0.0001]
[1740759750733,18.79181043,145.49,145.48,0.0001]
[1740759751149,18.64964886,145.49,145.48,0.0001]
[1740759751654,18.79181043,145.49,145.48,0.0001]
[1740759751863,19.47911043,145.49,145.48,0.0001]
[1740759752052,21.47911043,145.49,145.48,0.0001]
[1740759752242,19.47911043,145.49,145.48,0.0001]
[1740759752637,18.79181043,145.49,145.48,0.0001]
[1740759752837,19.47911043,145.49,145.48,0.0001]
[1740759753238,23.47911043,145.49,145.48,0.0001]
[1740759753439,21.47911043,145.49,145.48,0.0001]
[1740759753851,23.47911043,145.49,145.48,0.0001]
[1740759754054,21.47911043,145.49,145.48,0.0001]
[1740759755041,23.47911043,145.49,145.48,0.0001]
[1740759756162,21.47911043,145.49,145.48,0.0001]
[1740759756460,19.47911043,145.49,145.48,0.0001]
[1740759756869,21.47911043,145.49,145.48,0.0001]
[1740759757175,19.47911043,145.49,145.48,0.0001]
[1740759758962,18.79181043,145.49,145.48,0.0001]
[1740759759265,14.7895,145.52,145.48,0.0001]
[1740759759462,7.76,145.53,145.48,0.0001]
[1740759759648,18.64964886,145.52,145.48,0.0001]
[1740759760251,20.64964886,145.52,145.48,0.0001]
[1740759760451,0.14216157,145.51,145.48,0.0001]
[1740759760650,38.79181043,145.49,145.48,0.0001]
[1740759760862,40.79181043,145.49,145.48,0.0001]
[1740759761255,42.79181043,145.49,145.48,0.0001]
[1740759761567,41.47911043,145.49,145.48,0.0001]
[1740759761767,43.47911043,145.49,145.48,0.0001]
[1740759761946,43.50911043,145.49,145.48,0.0001]
[1740759763374,46.9007002,145.49,145.48,0.0001]
[1740759763670,19.36694886,145.49,145.48,0.0001]
[1740759764069,19.50911043,145.49,145.48,0.0001]
[1740759764255,19.36694886,145.49,145.48,0.0001]
[1740759764456,19.50911043,145.49,145.48,0.0001]
[1740759764672,18.67964886,145.49,145.48,0.0001]
[1740759766680,0.03,145.49,145.48,0.0001]
[1740759766975,0.03,145.49,145.48,312.0001]
[1740759768475,0.03,145.49,145.48,0.0001]
[1740759771256,0.03,145.49,145.48,312.0001]
[1740759771761,80.73,145.49,145.48,312.0001]
[1740759772376,80.63,145.49,145.48,312.0001]
[1740759773573,81.3173,145.49,145.48,312.0001]
[1740759774277,81.3173,145.49,145.48,0.0001]
[1740759774776,80.66,145.49,145.48,0.0001]
[1740759775275,99.30964886,145.49,145.48,0.0001]
[1740759775672,99.99694886,145.49,145.48,0.0001]
[1740759777687,107.89911043,145.49,145.48,0.0001]
[1740759777862,27.26911043,145.49,145.48,0.0001]
[1740759778183,29.26911043,145.49,145.48,0.0001]
[1740759778686,27.26911043,145.49,145.48,0.0001]
[1740759779772,26.58181043,145.49,145.48,0.0001]
[1740759780479,27.26911043,145.49,145.48,0.0001]
[1740759780672,27.26911043,145.49,145.48,312.0001]
[1740759781278,26.58181043,145.49,145.48,312.0001]
[1740759781485,27.26911043,145.49,145.48,312.0001]
[1740759781783,26.58181043,145.49,145.48,0.0001]
[1740759782663,26.43964886,145.49,145.48,0.0001]
[1740759783073,7.79,145.49,145.48,0.0001]
[1740759783274,0.03,145.49,145.48,0.0001]
[1740759784765,0.03,145.49,145.48,312.0001]
[1740759785365,0.03,145.49,145.48,0.0001]
[1740759788377,0.03,145.49,145.48,312.0001]
[1740759788775,0.03,145.49,145.48,0.0001]
[1740759790693,22.82181043,145.49,145.48,0.0001]
[1740759792997,20.82181043,145.49,145.48,0.0001]
[1740759793667,0.03,145.49,145.48,0.0001]
[1740759794476,0.17216157,145.49,145.48,0.0001]
[1740759794676,4.17216157,145.49,145.48,0.0001]
[1740759796281,42.79181043,145.48,145.47,0.063]
[1740759796485,46.53181043,145.48,145.47,0.063]
[1740759796681,46.38964886,145.48,145.47,0.063]
[1740759796886,18.64964886,145.48,145.47,0.063]
[1740759797677,0.03,145.49,145.47,0.063]
[1740759798789,0.03,145.49,145.48,312.0]
[1740759801088,18.67964886,145.49,145.48,312.0]
[1740759803102,99.49181043,145.48,145.47,0.063]
[1740759803399,18.79181043,145.48,145.47,0.063]
[1740759804990,22.79181043,145.48,145.47,0.063]
[1740759809814,24.14216157,145.45,145.44,0.063]
[1740759809996,22.79181043,145.45,145.44,0.063]
[1740759811119,18.79181043,145.45,145.44,0.063]
[1740759812924,115.87,145.49,145.44,0.063]
[1740759813121,0.03,145.49,145.44,0.063]
[1740759816006,0.03,145.49,145.45,20.0]
[1740759816208,0.03,145.49,145.48,312.0]
[1740759816516,0.03,145.49,145.44,0.063]
[1740759818316,0.03,145.49,145.44,81.063]
[1740759818821,0.03,145.49,145.44,0.063]
[1740759819537,0.03,145.49,145.44,312.063]
[1740759821501,0.03,145.49,145.44,0.063]
[1740759824422,0.03,145.49,145.44,312.063]
[1740759824605,0.17216157,145.49,145.44,312.063]
[1740759824920,18.79181043,145.47,145.44,0.063]
[1740759826614,80.7,145.46,145.44,0.063]
[1740759827526,18.64964886,145.45,145.44,0.063]
[1740759828105,99.34964886,145.45,145.44,0.063]
[1740759830128,99.49181043,145.45,145.44,0.063]
[1740759830714,0.14216157,145.45,145.44,0.063]
[1740759831819,7.72,145.48,145.44,0.063]
[1740759832015,20.0,145.45,145.44,0.063]
[1740759833921,38.79181043,145.45,145.44,0.063]
[1740759835334,49.08961043,145.45,145.44,0.063]
[1740759836227,47.08961043,145.45,145.44,0.063]
[1740759836420,49.08961043,145.45,145.44,0.063]
[1740759836733,22.14216157,145.41,145.33,0.063]
[1740759836933,0.14216157,145.39,145.33,0.063]
[1740759838125,7.72,145.4,145.33,20.063]
[1740759838436,7.72,145.4,145.33,332.063]
[1740759839136,7.72,145.4,145.33,20.063]
[1740759840536,7.72,145.4,145.34,20.0]
[1740759840537,88.42,145.4,145.34,20.0]
[1740759840737,88.42,145.4,145.33,0.063]
[1740759841117,80.7,145.44,145.35,20.0]
[1740759841325,80.7,145.43,145.37,20.0]
[1740759842239,80.7,145.43,145.39,312.0]
[1740759843830,80.7,145.42,145.39,312.0]
[1740759844231,80.7,145.42,145.38,0.063]
[1740759846039,80.7,145.41,145.38,0.063]
[1740759848134,0.14216157,145.4,145.38,0.063]
[1740759848440,80.7,145.39,145.38,0.063]
[1740759848654,80.84216157,145.39,145.38,0.063]
[1740759848819,18.79181043,145.39,145.38,0.063]
[1740759850937,30.65142389,145.39,145.38,0.063]
[1740759851127,32.65142389,145.39,145.38,0.063]
[1740759852339,28.65142389,145.39,145.38,0.063]
[1740759853045,3.39036245,145.4,145.38,0.063]
[1740759853247,11.72,145.39,145.38,0.063]
[1740759853466,11.86216157,145.39,145.38,0.063]
[1740759853752,30.51181043,145.39,145.38,0.063]
[1740759854839,36.67791043,145.39,145.38,0.063]
[1740759855242,42.37456326,145.39,145.38,0.063]
[1740759855640,36.67791043,145.39,145.38,0.063]
[1740759858327,34.67791043,145.39,145.38,0.063]
[1740759858531,36.67791043,145.39,145.38,0.063]
[1740759858733,26.36964886,145.39,145.38,0.063]
[1740759859052,7.72,145.42,145.38,0.063]
[1740759859646,80.7,145.41,145.38,0.063]
[1740759859834,80.7,145.4,145.38,0.063]
[1740759860350,80.84216157,145.39,145.38,0.063]
[1740759860736,0.14216157,145.39,145.38,0.063]
[1740759860930,20.14216157,145.39,145.38,0.063]
[1740759861135,47.00351043,145.39,145.38,0.063]
[1740759861355,45.00351043,145.39,145.38,0.063]
[1740759861729,47.00351043,145.39,145.38,0.063]
[1740759861933,45.00351043,145.39,145.38,0.063]
[1740759862435,47.00351043,145.39,145.38,0.063]
[1740759862631,45.00351043,145.39,145.38,0.063]
[1740759863437,47.00351043,145.39,145.38,0.063]
[1740759863637,52.52709126,145.39,145.38,0.063]
[1740759864135,168.44709126,145.39,145.38,0.063]
[1740759864556,168.44709126,145.39,145.33,0.063]
[1740759864557,18.79181043,145.34,145.33,0.063]
[1740759864757,26.49181043,145.34,145.33,0.063]
[1740759865336,30.49181043,145.34,145.33,0.063]
[1740759866867,33.94790638,145.34,145.33,0.063]
[1740759867154,20.14216157,145.3,145.29,0.063]
[1740759867462,20.79181043,145.3,145.29,0.063]
[1740759868158,0.14216157,145.3,145.29,0.063]
[1740759868535,20.0,145.31,145.29,0.063]
[1740759868748,11.0958244,145.34,145.29,0.063]
[1740759868943,88.4,145.33,145.29,0.063]
[1740759869143,26.49181043,145.32,145.29,0.063]
[1740759869541,80.7,145.31,145.29,0.063]
[1740759869858,80.7,145.3,145.29,0.063]
[1740759870752,80.84216157,145.3,145.29,0.063]
[1740759871352,18.79181043,145.3,145.29,0.063]
[1740759872267,20.79181043,145.3,145.29,0.063]
[1740759872556,18.79181043,145.3,145.29,0.063]
[1740759872944,20.79181043,145.3,145.29,0.063]
[1740759873241,22.79181043,145.3,145.29,0.063]
[1740759873952,22.14216157,145.26,145.25,0.063]
[1740759874263,50.49181043,145.26,145.25,0.063]
[1740759875658,30.89991043,145.24,145.23,0.063]
[1740759875862,32.16356505,145.24,145.23,0.063]
[1740759876561,38.44080089,145.24,145.23,0.063]
[1740759877147,2.0,145.2,145.14,0.063]
[1740759877345,26.49181043,145.2,145.14,0.063]
[1740759878152,28.49181043,145.2,145.14,0.063]
[1740759879081,30.49181043,145.2,145.14,0.063]
[1740759879249,22.79181043,145.19,145.14,0.063]
[1740759879449,24.05546505,145.19,145.14,0.063]
[1740759881168,20.0,145.16,145.14,0.063]
[1740759881343,100.84216157,145.15,145.14,0.063]
[1740759881548,119.49181043,145.15,145.14,0.063]
[1740759883064,124.87097658,145.15,145.14,0.063]
[1740759883368,44.17097658,145.15,145.14,0.063]
[1740759883964,46.17097658,145.15,145.14,0.063]
[1740759885059,20.14216157,145.11,145.1,0.063]
[1740759885258,46.49181043,145.11,145.1,0.063]
[1740759886254,49.9644663,145.11,145.1,0.063]
[1740759886462,31.17265587,145.11,145.1,0.063]
[1740759886661,31.31481744,145.11,145.1,0.063]
[1740759886955,49.9644663,145.11,145.1,0.063]
[1740759887361,42.2644663,145.11,145.1,0.063]
[1740759887556,31.31481744,145.11,145.1,0.063]
[1740759887762,7.7,145.11,145.1,0.063]
[1740759888376,0.14216157,145.13,145.1,0.063]
[1740759888570,7.7,145.12,145.1,0.063]
[1740759889559,116.04,145.17,145.1,0.063]
[1740759889775,7.7,145.16,145.11,1.5115]
[1740759890476,116.04,145.17,145.11,1.5115]
[1740759890672,7.7,145.16,145.11,1.5115]
[1740759891178,16.31300208,145.15,145.11,1.5115]
[1740759891976,80.7,145.15,145.11,1.5115]
[1740759892306,80.7,145.14,145.11,1.5115]
[1740759892462,80.7,145.13,145.11,1.5115]
[1740759892985,88.4,145.16,145.11,1.5115]
[1740759893198,80.7,145.15,145.11,3.5115]
[1740759893498,80.7,145.18,145.12,4.0]
[1740759893794,80.7,145.18,145.14,22.0]
[1740759894176,80.7,145.18,145.17,312.0]
[1740759894485,80.7,145.18,145.11,82.5115]
[1740759894672,80.7,145.17,145.11,1.5115]
[1740759896376,7.7,145.16,145.11,1.5115]
[1740759897367,7.7,145.16,145.11,313.5115]
[1740759897964,7.7,145.16,145.11,1.5115]
[1740759899676,80.7,145.15,145.11,1.5115]
[1740759899864,80.7,145.14,145.11,1.5115]
[1740759900269,80.7,145.13,145.11,1.5115]
[1740759901085,80.7,145.13,145.11,313.5115]
[1740759901283,80.7,145.22,145.12,2.0]
[1740759901483,80.7,145.21,145.15,2.0]
[1740759901705,80.7,145.24,145.17,2.0]
[1740759901982,80.7,145.23,145.18,2.0]
[1740759902167,80.7,145.25,145.18,2.0]
[1740759902564,88.4,145.29,145.2,4.0]
[1740759902769,80.7,145.29,145.21,4.0]
[1740759902969,80.7,145.28,145.22,2.0]
[1740759903587,80.7,145.28,145.23,10.2328]
[1740759903792,0.063,145.3,145.26,22.0]
[1740759904591,0.063,145.28,145.26,334.0]
[1740759904992,0.063,145.28,145.26,22.0]
[1740759905194,0.063,145.28,145.23,91.2328]
[1740759905502,0.063,145.28,145.23,8.2328]
[1740759907169,80.7,145.27,145.18,89.331]
[1740759907403,80.7,145.27,145.18,90.8327]
[1740759907703,80.7,145.27,145.21,22.0]
[1740759907894,80.7,145.27,145.21,2.0]
[1740759908074,80.7,145.27,145.22,312.0]
[1740759908572,80.7,145.27,145.22,2.0]
[1740759909075,0.063,145.28,145.25,22.0]
[1740759909269,0.063,145.28,145.26,18.64964886]
[1740759909478,0.063,145.28,145.27,2.0]
[1740759910201,0.063,145.28,145.25,105.0]
[1740759910407,0.063,145.28,145.25,103.0]
[1740759910610,0.063,145.3,145.29,40.79181043]
[1740759910790,0.063,145.32,145.31,2.0]
[1740759910979,0.063,145.32,145.3,4.0]
[1740759911588,0.063,145.32,145.31,312.0]
[1740759916110,0.063,145.32,145.27,89.2114]
[1740759916111,0.063,145.32,145.27,6.2114]
[1740759916287,0.063,145.32,145.26,1.6293]
[1740759916617,80.7,145.31,145.26,1.6293]
[1740759916810,88.38,145.31,145.26,21.6293]
[1740759916977,88.38,145.31,145.26,1.6293]
[1740759918006,80.7,145.3,145.26,1.6293]
[1740759918203,80.7,145.3,145.21,84.5299]
[1740759918505,80.7,145.29,145.21,84.5299]
[1740759918702,80.7,145.29,145.22,4.0]
[1740759918886,80.7,145.29,145.23,2.0]
[1740759919083,88.38,145.31,145.27,312.0]
[1740759919288,80.7,145.31,145.27,312.0]
[1740759919586,80.7,145.31,145.27,2.0]
[1740759919909,80.7,145.31,145.27,10.1171]
[1740759920083,0.063,145.32,145.27,10.1171]
[1740759920399,0.063,145.32,145.28,2.0]
[1740759920705,0.063,145.32,145.31,20.0]
[1740759921107,0.063,145.32,145.3,1.5138]
[1740759921481,0.063,145.32,145.27,6.1171]
[1740759921682,0.063,145.32,145.26,1.6292]
[1740759922104,80.763,145.32,145.23,8.4846]
[1740759922404,80.7,145.31,145.23,6.4846]
[1740759922605,80.7,145.31,145.26,312.0]
[1740759922805,80.7,145.3,145.26,312.0]
[1740759923000,80.7,145.3,145.23,6.4846]
[1740759923203,0.063,145.32,145.22,1.503]
[1740759923204,80.7,145.29,145.22,1.503]
[1740759923388,80.7,145.29,145.19,87.1937]
[1740759923583,7.68,145.3,145.19,6.1937]
[1740759923584,80.7,145.28,145.19,6.1937]
[1740759924897,80.7,145.28,145.2,2.0]
[1740759926012,80.7,145.28,145.25,312.0]
[1740759926217,80.7,145.27,145.25,312.0]
[1740759927004,80.7,145.26,145.25,312.0]
[1740759927715,80.7,145.26,145.25,312.03]
[1740759930300,18.79181043,145.29,145.25,312.03]
[1740759930705,0.14216157,145.29,145.25,312.03]
[1740759932117,7.68,145.3,145.25,312.03]
[1740759932613,0.14216157,145.29,145.25,312.03]
[1740759933610,0.14216157,145.29,145.25,0.03]
[1740759934004,18.79181043,145.29,145.25,0.03]
[1740759934204,18.79181043,145.27,145.25,0.03]
[1740759934406,25.13771043,145.26,145.25,0.03]
[1740759935906,27.13771043,145.26,145.25,0.03]
[1740759936110,27.13771043,145.26,145.13,2.03]
[1740759936111,0.14216157,145.21,145.13,0.03]
[1740759936311,0.14216157,145.17,145.13,0.03]
[1740759936510,18.79181043,145.17,145.13,312.03]
[1740759937915,0.14216157,145.19,145.13,0.03]
[1740759938413,18.79181043,145.19,145.13,0.03]
[1740759938609,80.7,145.16,145.13,0.03]
[1740759938821,80.7,145.15,145.13,0.03]
[1740759939315,7.66,145.14,145.13,0.03]
[1740759939503,26.45181043,145.14,145.13,0.03]
[1740759941634,27.14071043,145.14,145.13,0.03]
[1740759941929,26.45181043,145.14,145.13,0.03]
[1740759942317,7.66,145.14,145.13,0.03]
[1740759945414,6.2097,145.21,145.13,0.03]
[1740759945622,7.66,145.2,145.13,0.03]
[1740759946031,80.7,145.17,145.13,0.03]
[1740759947036,80.7,145.17,145.13,312.03]
[1740759948232,80.7,145.17,145.13,314.03]
[1740759948527,80.7,145.17,145.13,0.03]
[1740759949714,80.7,145.16,145.13,0.03]
[1740759949909,19.48061043,145.17,145.13,0.03]
[1740759949910,18.79181043,145.14,145.13,0.03]
[1740759950115,7.80216157,145.14,145.13,0.03]
[1740759950742,9.80216157,145.14,145.13,0.0001]
[1740759951029,14.38416157,145.14,145.13,0.0001]
[1740759951521,15.07306157,145.14,145.13,0.0001]
[1740759951711,38.79181043,145.12,145.11,0.0001]
[1740759951911,18.79181043,145.11,145.06,0.063]
[1740759953646,0.14216157,145.09,145.06,0.063]
[1740759954218,18.79181043,145.07,145.06,0.063]
[1740759955632,19.48111043,145.07,145.06,0.063]
[1740759957225,19.48111043,145.07,145.06,0.0001]
[1740759957548,19.48111043,145.07,145.03,0.03]
[1740759957734,21.20441043,145.07,145.03,0.03]
[1740759958839,18.79181043,145.05,145.03,0.03]
[1740759959227,0.14216157,145.06,145.03,0.03]
[1740759959454,18.79181043,145.06,145.03,0.03]
[1740759959659,0.14216157,145.04,145.03,0.03]
[1740759960136,0.14216157,145.04,145.03,0.0001]
[1740759961054,38.79181043,145.04,145.03,0.0001]
[1740759961257,0.14216157,145.02,145.0,0.0001]
[1740759961422,0.14216157,144.99,144.96,0.0001]
[1740759961627,18.79181043,144.97,144.96,0.0001]
[1740759961820,0.6897,144.98,144.96,0.0001]
[1740759962053,9.2291,145.01,144.96,0.0001]
[1740759962054,7.66,145.01,144.96,0.0001]
[1740759962378,0.6896,145.0,144.96,0.0001]
[1740759962722,7.66,145.02,144.96,0.0001]
[1740759962946,0.6894,145.05,144.96,10.1251]
[1740759963245,0.6894,145.05,144.97,2.0]
[1740759963548,123.78,145.06,144.98,5.6506]
[1740759963749,7.66,145.06,144.98,5.6506]
[1740759963953,7.66,145.08,144.99,4.0]
[1740759964536,7.66,145.08,145.01,312.0]
[1740759964866,7.66,145.08,145.01,316.0]
[1740759965028,0.6891,145.1,145.01,20.0]
[1740759965365,18.64964886,145.08,145.0,2.0]
[1740759965562,7.66,145.09,145.01,2.0]
[1740759965734,8.3492,145.09,145.01,24.0]
[1740759965931,7.66,145.09,145.02,2.0]
[1740759966266,122.7102,145.14,145.05,2.0]
[1740759966444,7.66,145.12,145.06,3.5286]
[1740759966846,7.66,145.12,145.06,5.5286]
[1740759967036,6.4816,145.18,145.08,4.0]
[1740759967233,7.66,145.18,145.1,2.0]
[1740759967442,7.66,145.18,145.09,24.0]
[1740759967642,8.3488,145.18,145.1,2.0]
[1740759967841,8.3488,145.18,145.12,2.0]
[1740759967842,7.66,145.18,145.12,2.0]
[1740759968152,8.3488,145.18,145.12,312.0]
[1740759968353,7.66,145.18,145.12,312.0]
[1740759968854,0.6886,145.21,145.13,2.0]
[1740759969056,7.66,145.21,145.14,4.0]
[1740759969356,116.16,145.22,145.15,2.0]
[1740759969543,8.3485,145.23,145.15,2.0]
[1740759970053,7.66,145.23,145.16,2.0]
[1740759970240,0.6885,145.24,145.16,4.0]
[1740759970440,8.4114,145.25,145.18,22.0]
[1740759970647,8.4114,145.25,145.17,2.0]
[1740759971050,8.4114,145.25,145.15,5.5315]
[1740759971256,0.14216157,145.24,145.13,6.0356]
[1740759971450,0.14216157,145.21,145.13,6.0356]
[1740759971653,0.14216157,145.21,145.1,1.5748]
[1740759971654,0.14216157,145.21,145.11,2.0]
[1740759971958,0.6887,145.2,145.14,312.0]
[1740759972759,19.33824886,145.21,145.14,312.0]
[1740759973760,0.6885,145.24,145.15,2.0]
[1740759973961,8.4114,145.25,145.18,22.0]
[1740759974260,8.4114,145.25,145.14,4.0]
[1740759974561,0.14216157,145.23,145.13,20.0]
[1740759974762,0.14216157,145.23,145.11,2.0]
[1740759974763,0.6886,145.22,145.11,2.0]
[1740759975059,0.6886,145.22,145.14,2.0]
[1740759975261,0.6886,145.22,145.15,4.0]
[1740759975472,0.6885,145.24,145.16,22.0]
[1740759975769,0.6885,145.24,145.16,24.0]
[1740759975942,0.7514,145.25,145.18,8.3443]
[1740759976259,0.7514,145.25,145.19,1.5768]
[1740759976458,18.64964886,145.24,145.14,7.7219]
[1740759976760,40.37104886,145.23,145.14,7.7219]
[1740759976942,21.7214,145.23,145.14,319.7219]
[1740759978265,38.64964886,145.22,145.14,319.7219]
[1740759978561,0.14216157,145.19,145.1,6.4013]
[1740759978742,2.4108,145.18,145.1,6.4013]
[1740759979450,18.64964886,145.17,145.09,1.6109]
[1740759979640,0.14216157,145.16,145.06,6.1474]
[1740759979846,18.64964886,145.14,145.06,6.1474]
[1740759980040,0.14216157,145.13,145.05,1.5647]
[1740759980245,18.64964886,145.14,145.05,1.5647]
[1740759980959,2.4115,145.13,145.05,1.5647]
[1740759981553,2.4115,145.13,145.06,312.0]
[1740759982848,0.689,145.13,145.06,312.0]
[1740759983240,0.6889,145.15,145.07,2.0]
[1740759983763,0.6889,145.15,145.08,22.0]
[1740759983943,0.6889,145.16,145.09,2.0]
[1740759984854,0.6889,145.16,145.1,20.0]
[1740759985167,0.6889,145.16,145.08,2.0]
[1740759985474,0.6889,145.16,145.09,20.0]
[1740759986256,0.6889,145.16,145.11,312.0]
[1740759986655,8.3288,145.17,145.11,312.0]
[1740759987570,10.0509,145.17,145.11,312.0]
[1740759988355,18.64964886,145.16,145.05,1.5647]
[1740759988556,0.14216157,145.15,145.05,1.5647]
[1740759988761,18.64964886,145.16,145.06,2.0]
[1740759988969,0.6889,145.15,145.05,5.5647]
[1740759989165,18.64964886,145.14,145.05,1.5647]
[1740759989357,18.64964886,145.14,145.06,20.0]
[1740759990371,2.4112,145.15,145.06,20.0]
[1740759990567,0.6889,145.15,145.07,2.0]
[1740759990769,7.64,145.16,145.08,24.0]
[1740759990946,0.6888,145.17,145.09,4.0]
[1740759990947,7.64,145.17,145.09,4.0]
[1740759991155,7.64,145.17,145.07,2.0]
[1740759991353,18.64964886,145.16,145.05,3.5647]
[1740759991661,0.14216157,145.15,145.04,2.0]
[1740759991863,6.2251,145.14,145.04,2.0]
[1740759992270,6.2251,145.14,145.05,20.0]
[1740759992769,6.2251,145.14,145.07,20.0]
[1740759992968,6.9141,145.14,145.07,22.0]
[1740759993876,8.6365,145.14,145.07,2.0]
[1740759994574,0.689,145.14,145.1,312.0]
[1740759994974,8.3289,145.15,145.08,28.8923]
[1740759995173,0.6887,145.19,145.12,2.0]
[1740759995475,6.1701,145.21,145.13,2.0]
[1740759995679,0.6887,145.2,145.13,22.0]
[1740759996069,0.6887,145.2,145.13,20.0]
[1740759996269,2.4104,145.2,145.1,6.1194]
[1740759996469,2.4104,145.2,145.1,8.1194]
[1740759996777,18.64964886,145.19,145.1,20.0]
[1740759996959,18.64964886,145.19,145.09,1.5439]
[1740759997159,21.20221043,145.2,145.08,2.0]
[1740759997480,24.64571043,145.2,145.08,2.0]
[1740759997779,21.20221043,145.2,145.09,2.0]
[1740759997974,21.20221043,145.2,145.14,312.0]
[1740759998181,21.20221043,145.2,145.08,2.0]
[1740759998369,21.20221043,145.2,145.06,22.64964886]
[1740759998675,24.64571043,145.2,145.06,22.64964886]
[1740759998977,24.64571043,145.2,145.07,0.14216157]
[1740759999571,20.0,145.17,145.07,2.14216157]
[1740759999777,20.0,145.17,145.07,0.14216157]
[1740759999984,20.0,145.17,145.07,2.14216157]
[1740760000488,24.64571043,145.2,145.07,4.14216157]
[1740760000661,21.06004886,145.2,145.09,22.0]
[1740760000861,21.06004886,145.2,145.09,24.0]
[1740760001057,24.50354886,145.2,145.09,20.0]
[1740760001270,24.50354886,145.2,145.15,312.0]
[1740760002580,24.50354886,145.2,145.09,20.0]
[1740760003180,24.50354886,145.2,145.04,9.08690014]
[1740760003181,18.79181043,145.14,145.03,6.0444]
[1740760003479,10.035,145.15,145.03,6.0444]
[1740760003480,18.64964886,145.12,145.03,6.0444]
[1740760003681,7.64,145.13,145.03,6.0444]
[1740760003891,7.64,145.13,145.03,8.0444]
[1740760004095,10.035,145.15,145.06,20.0]
[1740760004384,7.64,145.14,145.07,22.0]
[1740760005185,7.64,145.14,145.08,2.14216157]
[1740760005573,8.3289,145.14,145.12,312.0]
[1740760005784,7.64,145.14,145.12,312.0]
[1740760006287,8.3289,145.14,145.12,312.0]
[1740760006488,8.3289,145.14,145.03,8.0444]
[1740760006781,18.64964886,145.13,145.01,3.5185]
[1740760006983,18.64964886,145.13,145.01,1.5185]
[1740760007187,2.4122,145.09,145.01,1.5185]
[1740760007482,26.43181043,145.08,144.97,1.6445]
[1740760007676,26.43181043,145.08,144.96,0.0001]
[1740760008070,0.14216157,145.06,144.96,20.0001]
[1740760008278,18.79181043,145.06,144.96,0.0001]
[1740760009280,0.14216157,145.04,144.96,0.0001]
[1740760009585,0.14216157,145.04,144.97,312.0]
[1740760009586,20.0,145.04,144.97,312.0]
[1740760010378,18.64964886,145.03,144.97,312.0]
[1740760010581,7.64,145.02,144.97,312.0]